[Event "*** Titled Tuesday 3|2 Blitz"]
[Site "Chess.com"]
[Date "2016.05.03"]
[Round "6"]
[White "destroyer305"]
[Black "1random"]
[Result "0-1"]
[WhiteElo "2205"]
[BlackElo "2037"]
[TimeControl "180+2"]
[EndTime "18:17:24 PDT"]
[Termination "1random won on time"]

1. e4 {[%clk 0:03:01.9]} 1... Nf6 {[%clk 0:02:57.6]} 2. e5 {[%clk 0:03:02.5]}
2... Nd5 {[%clk 0:02:57.8]} 3. d4 {[%clk 0:03:04.1]} 3... d6 {[%clk 0:02:58.4]}
4. c4 {[%clk 0:03:05.7]} 4... Nb6 {[%clk 0:02:59.5]} 5. exd6 {[%clk 0:03:07.2]}
5... cxd6 {[%clk 0:03:01.4]} 6. Nc3 {[%clk 0:03:08.6]} 6... g6 {[%clk
0:03:03.1]} 7. Be3 {[%clk 0:03:09.8]} 7... Bg7 {[%clk 0:03:04.7]} 8. Rc1 {[%clk
0:03:11]} 8... O-O {[%clk 0:03:06.4]} 9. b3 {[%clk 0:03:12.5]} 9... Bf5 {[%clk
0:03:08]} 10. Be2 {[%clk 0:03:13.9]} 10... d5 {[%clk 0:03:08.2]} 11. c5 {[%clk
0:03:12.9]} 11... Nc8 {[%clk 0:03:09.5]} 12. Nf3 {[%clk 0:03:14.3]} 12... Nc6
{[%clk 0:03:07.5]} 13. O-O {[%clk 0:03:14.9]} 13... Bg4 {[%clk 0:03:08.8]} 14.
h3 {[%clk 0:03:14.8]} 14... Bxf3 {[%clk 0:03:09.9]} 15. Bxf3 {[%clk 0:03:16.7]}
15... e6 {[%clk 0:03:11.5]} 16. a3 {[%clk 0:03:17.3]} 16... N8e7 {[%clk
0:03:12.1]} 17. b4 {[%clk 0:03:18.3]} 17... Nf5 {[%clk 0:03:13.5]} 18. b5 {[%clk
0:03:18.8]} 18... Ncxd4 {[%clk 0:03:13.4]} 19. Bg4 {[%clk 0:02:56.5]} 19... Nxe3
{[%clk 0:03:05.8]} 20. fxe3 {[%clk 0:02:58.4]} 20... Nf5 {[%clk 0:03:07.2]} 21.
Bxf5 {[%clk 0:02:48.9]} 21... gxf5 {[%clk 0:03:09.1]} 22. Ne2 {[%clk 0:02:35.5]}
22... a6 {[%clk 0:02:41.3]} 23. a4 {[%clk 0:02:32.1]} 23... axb5 {[%clk
0:02:42]} 24. axb5 {[%clk 0:02:34]} 24... Ra5 {[%clk 0:02:42.3]} 25. Qd3 {[%clk
0:02:34.3]} 25... Qd7 {[%clk 0:02:38]} 26. Rb1 {[%clk 0:02:33.1]} 26... Rfa8
{[%clk 0:02:36.9]} 27. Rfc1 {[%clk 0:02:28.4]} 27... Ra3 {[%clk 0:02:29.7]} 28.
Rb3 {[%clk 0:02:25.4]} 28... Rxb3 {[%clk 0:02:23.9]} 29. Qxb3 {[%clk 0:02:27.3]}
29... Ra5 {[%clk 0:02:18.6]} 30. c6 {[%clk 0:02:26.6]} 30... bxc6 {[%clk
0:02:19.3]} 31. bxc6 {[%clk 0:02:28.2]} 31... Qc7 {[%clk 0:02:13.5]} 32. Qb7
{[%clk 0:02:27.3]} 32... Be5 {[%clk 0:01:56]} 33. Nd4 {[%clk 0:02:26.8]} 33...
Ra7 {[%clk 0:01:36.6]} 34. Qb3 {[%clk 0:02:18.5]} 34... Bxd4 {[%clk 0:01:28.8]}
35. exd4 {[%clk 0:02:19]} 35... Qf4 {[%clk 0:01:22.1]} 36. Qc3 {[%clk
0:01:47.8]} 36... Rc7 {[%clk 0:01:20.9]} 37. Rb1 {[%clk 0:01:40.7]} 37... Qd6
{[%clk 0:01:17.1]} 38. Rb8+ {[%clk 0:01:26.5]} 38... Kg7 {[%clk 0:01:14.5]} 39.
Qe3 {[%clk 0:01:28]} 39... h6 {[%clk 0:00:40.9]} 40. Rb7 {[%clk 0:00:29.6]}
40... Rxc6 {[%clk 0:00:31.9]} 41. Rb1 {[%clk 0:00:17.4]} 41... Rb6 {[%clk
0:00:28.3]} 42. Rf1 {[%clk 0:00:16.8]} 42... Rb4 {[%clk 0:00:27.8]} 43. Rf3
{[%clk 0:00:15]} 43... Rb1+ {[%clk 0:00:26.3]} 44. Kf2 {[%clk 0:00:11]} 44...
Rb2+ {[%clk 0:00:27.5]} 45. Kg1 {[%clk 0:00:12.1]} 45... Rb1+ {[%clk 0:00:20]}
46. Kf2 {[%clk 0:00:13.4]} 46... Qc7 {[%clk 0:00:19.7]} 47. Rg3+ {[%clk
0:00:13.4]} 47... Kh7 {[%clk 0:00:21]} 48. Rf3 {[%clk 0:00:08.7]} 48... Rb2+
{[%clk 0:00:19.3]} 49. Kg1 {[%clk 0:00:07.5]} 49... Rb1+ {[%clk 0:00:20.6]} 50.
Kf2 {[%clk 0:00:08.6]} 50... Qc2+ {[%clk 0:00:21.3]} 51. Kg3 {[%clk 0:00:09.2]}
51... Qe4 {[%clk 0:00:22.4]} 52. Qa3 {[%clk 0:00:04.7]} 52... Rg1 {[%clk
0:00:16.1]} 53. Qf8 {[%clk 0:00:03.7]} 53... Kg6 {[%clk 0:00:13.2]} 54. Qg8+
{[%clk 0:00:04.1]} 54... Kf6 {[%clk 0:00:13.9]} 55. Qh8+ {[%clk 0:00:05.3]}
55... Kg6 {[%clk 0:00:13.9]} 56. Qg8+ {[%clk 0:00:06.3]} 56... Kf6 {[%clk
0:00:15.2]} 57. Qd8+ {[%clk 0:00:07.8]} 57... Kg7 {[%clk 0:00:15.9]} 58. Qc7
{[%clk 0:00:03.5]} 58... Qxd4 {[%clk 0:00:15.5]} 0-1

[Event "*** Titled Tuesday 3|2 Blitz"]
[Site "Chess.com"]
[Date "2016.05.03"]
[Round "6"]
[White "attack2mateU"]
[Black "Kacparov"]
[Result "1/2-1/2"]
[WhiteElo "2468"]
[BlackElo "2565"]
[TimeControl "180+2"]
[EndTime "18:18:11 PDT"]
[Termination "Game drawn by agreement"]

1. e4 {[%clk 0:03:01.9]} 1... c5 {[%clk 0:03:00.5]} 2. Nf3 {[%clk 0:03:02.4]}
2... e6 {[%clk 0:03:00.8]} 3. d4 {[%clk 0:03:03.7]} 3... cxd4 {[%clk 0:03:02.7]}
4. Nxd4 {[%clk 0:03:05.1]} 4... a6 {[%clk 0:03:04.4]} 5. Nc3 {[%clk 0:03:06.5]}
5... Qc7 {[%clk 0:03:05.4]} 6. Bd3 {[%clk 0:03:06.9]} 6... Nf6 {[%clk
0:03:06.6]} 7. f4 {[%clk 0:03:07.7]} 7... d6 {[%clk 0:02:58.7]} 8. O-O {[%clk
0:03:07.8]} 8... Nbd7 {[%clk 0:02:59.7]} 9. Kh1 {[%clk 0:03:06.9]} 9... b5
{[%clk 0:03:00.3]} 10. Qe2 {[%clk 0:03:06.3]} 10... Bb7 {[%clk 0:03:00.8]} 11.
Bd2 {[%clk 0:03:07.5]} 11... Nc5 {[%clk 0:03:01.3]} 12. b4 {[%clk 0:02:54.3]}
12... Nxd3 {[%clk 0:03:02.2]} 13. cxd3 {[%clk 0:02:56]} 13... Be7 {[%clk
0:03:03.2]} 14. a4 {[%clk 0:02:44.4]} 14... bxa4 {[%clk 0:03:03.5]} 15. Nxa4
{[%clk 0:02:46.3]} 15... O-O {[%clk 0:02:59.6]} 16. Rfc1 {[%clk 0:02:47.8]}
16... Qd8 {[%clk 0:03:00.7]} 17. Nc6 {[%clk 0:02:38.8]} 17... Bxc6 {[%clk
0:03:01.3]} 18. Rxc6 {[%clk 0:02:40.7]} 18... Nd7 {[%clk 0:02:37.8]} 19. Rac1
{[%clk 0:02:33.4]} 19... Qb8 {[%clk 0:02:37.4]} 20. d4 {[%clk 0:02:25.3]} 20...
Qb5 {[%clk 0:02:25]} 21. Qxb5 {[%clk 0:02:18.6]} 21... axb5 {[%clk 0:02:26.9]}
22. Nb6 {[%clk 0:01:54.6]} 22... Nxb6 {[%clk 0:02:24.8]} 23. Rxb6 {[%clk
0:01:56.5]} 23... Rfb8 {[%clk 0:02:25.6]} 24. Rxb8+ {[%clk 0:01:56.1]} 24...
Rxb8 {[%clk 0:02:26.3]} 25. d5 {[%clk 0:01:34.5]} 25... Kf8 {[%clk 0:02:24.8]}
26. Kg1 {[%clk 0:01:34.7]} 26... Ke8 {[%clk 0:02:25.8]} 27. Rc7 {[%clk
0:01:34.9]} 27... Bd8 {[%clk 0:02:24.8]} 28. Rc6 {[%clk 0:01:34.9]} 28... Kd7
{[%clk 0:02:25.5]} 29. Kf2 {[%clk 0:01:35.6]} 29... exd5 {[%clk 0:02:25.2]} 30.
exd5 {[%clk 0:01:36.4]} 30... Ra8 {[%clk 0:02:26.6]} 31. Ke2 {[%clk 0:01:34.7]}
31... Ra2 {[%clk 0:02:26]} 32. Kd3 {[%clk 0:01:35.6]} 32... g6 {[%clk
0:02:24.2]} 33. Rc2 {[%clk 0:01:25.1]} 33... Ra3+ {[%clk 0:02:24.2]} 34. Rc3
{[%clk 0:01:25.9]} 34... Ra4 {[%clk 0:02:24.2]} 35. Rc2 {[%clk 0:01:25.8]} 35...
h5 {[%clk 0:02:21.4]} 36. g3 {[%clk 0:01:16.6]} 36... h4 {[%clk 0:02:20.1]} 37.
g4 {[%clk 0:01:17.4]} 37... Ra3+ {[%clk 0:02:20]} 38. Bc3 {[%clk 0:01:16.3]}
38... Bf6 {[%clk 0:02:10.3]} 39. g5 {[%clk 0:00:52.2]} 39... Bxc3 {[%clk
0:02:11.1]} 40. Rxc3 {[%clk 0:00:54.1]} 40... Ra4 {[%clk 0:02:06.9]} 41. Rb3
{[%clk 0:00:55.4]} 41... Ra2 {[%clk 0:02:05.7]} 42. h3 {[%clk 0:00:56.8]} 42...
Rg2 {[%clk 0:01:53.3]} 43. Ke4 {[%clk 0:00:57.9]} 43... Ke7 {[%clk 0:01:53.4]}
44. Rc3 {[%clk 0:00:58.7]} 44... Rb2 {[%clk 0:01:53.1]} 45. Rc7+ {[%clk
0:00:58.3]} 45... Ke8 {[%clk 0:01:54.2]} 46. Rb7 {[%clk 0:00:47.8]} 46... Rxb4+
{[%clk 0:01:54.5]} 47. Kf3 {[%clk 0:00:49.5]} 47... Rb3+ {[%clk 0:01:12.4]} 48.
Kg4 {[%clk 0:00:50.2]} 48... b4 {[%clk 0:01:12]} 49. Kxh4 {[%clk 0:00:51]} 49...
Rb1 {[%clk 0:01:07.4]} 50. Kg3 {[%clk 0:00:46]} 50... b3 {[%clk 0:01:07.4]} 51.
Kg2 {[%clk 0:00:46.3]} 51... b2 {[%clk 0:01:07.6]} 52. h4 {[%clk 0:00:46.8]}
52... Kd8 {[%clk 0:01:04.8]} 53. f5 {[%clk 0:00:36.2]} 53... Kc8 {[%clk
0:00:56.9]} 54. Rb4 {[%clk 0:00:32.7]} 54... Kd7 {[%clk 0:00:47.8]} 55. f6
{[%clk 0:00:30.7]} 55... Rd1 {[%clk 0:00:32.8]} 56. Rb7+ {[%clk 0:00:22.5]}
56... Kc8 {[%clk 0:00:23.6]} 57. Rxb2 {[%clk 0:00:23.8]} 57... Rxd5 {[%clk
0:00:24.6]} 58. Re2 {[%clk 0:00:24.7]} 58... Rd4 {[%clk 0:00:23.8]} 59. Kg3
{[%clk 0:00:25]} 59... Rd3+ {[%clk 0:00:24.9]} 60. Kf4 {[%clk 0:00:26.3]} 60...
Kd8 {[%clk 0:00:21.9]} 61. Re7 {[%clk 0:00:26.9]} 61... Rd4+ {[%clk 0:00:23.2]}
62. Kg3 {[%clk 0:00:26.7]} 62... Rd3+ {[%clk 0:00:24.4]} 63. Kf2 {[%clk
0:00:27.7]} 63... Rd4 {[%clk 0:00:22.8]} 64. Rxf7 {[%clk 0:00:25.4]} 64... Rxh4
{[%clk 0:00:23.7]} 65. Rg7 {[%clk 0:00:24.2]} 65... Ke8 {[%clk 0:00:21.5]} 66.
Rxg6 {[%clk 0:00:24.9]} 66... Rh7 {[%clk 0:00:22.1]} 67. Rg8+ {[%clk 0:00:23.2]}
67... Kf7 {[%clk 0:00:22.7]} 68. Ra8 {[%clk 0:00:16.8]} 68... Kg6 {[%clk
0:00:23.6]} 69. Ra5 {[%clk 0:00:18.5]} 69... Rh3 {[%clk 0:00:19.6]} 70. Rd5
{[%clk 0:00:17.2]} 70... Ra3 {[%clk 0:00:19.5]} 71. Ke2 {[%clk 0:00:17.9]} 71...
Rb3 {[%clk 0:00:20.7]} 72. Kf2 {[%clk 0:00:17.9]} 72... Ra3 {[%clk 0:00:21.8]}
73. Ke2 {[%clk 0:00:12.3]} 73... Rg3 {[%clk 0:00:20.9]} 74. Rxd6 {[%clk
0:00:12]} 74... Rxg5 {[%clk 0:00:21.7]} 75. f7+ {[%clk 0:00:12.3]} 75... Kxf7
{[%clk 0:00:22.6]} 76. Rd7+ {[%clk 0:00:13.6]} 1/2-1/2

[Event "*** Titled Tuesday 3|2 Blitz"]
[Site "Chess.com"]
[Date "2016.05.03"]
[Round "7"]
[White "Aguiar94"]
[Black "howitzer14"]
[Result "0-1"]
[WhiteElo "2377"]
[BlackElo "2261"]
[TimeControl "180+2"]
[EndTime "18:22:53 PDT"]
[Termination "howitzer14 won by resignation"]

1. e4 {[%clk 0:03:01.9]} 1... e5 {[%clk 0:03:00.9]} 2. Nf3 {[%clk 0:03:02.7]}
2... Nc6 {[%clk 0:03:02.6]} 3. d4 {[%clk 0:03:03.3]} 3... exd4 {[%clk
0:03:03.4]} 4. Nxd4 {[%clk 0:03:04.8]} 4... Bc5 {[%clk 0:03:04.9]} 5. Be3 {[%clk
0:03:04.3]} 5... Qf6 {[%clk 0:03:05.3]} 6. c3 {[%clk 0:03:05.5]} 6... Nge7
{[%clk 0:03:06.9]} 7. Nc2 {[%clk 0:03:06.1]} 7... Bb6 {[%clk 0:03:06.6]} 8. g3
{[%clk 0:03:06.3]} 8... O-O {[%clk 0:03:06.2]} 9. Bg2 {[%clk 0:03:07.7]} 9... d6
{[%clk 0:03:07.2]} 10. O-O {[%clk 0:03:09]} 10... Qg6 {[%clk 0:03:06.7]} 11. c4
{[%clk 0:03:07.3]} 11... f5 {[%clk 0:03:05.8]} 12. Nc3 {[%clk 0:03:07.7]} 12...
fxe4 {[%clk 0:03:05.5]} 13. Bxb6 {[%clk 0:03:00.8]} 13... axb6 {[%clk
0:03:05.8]} 14. Nb5 {[%clk 0:02:58.9]} 14... Bg4 {[%clk 0:03:01.4]} 15. Qe1
{[%clk 0:02:50.8]} 15... Rac8 {[%clk 0:02:51.2]} 16. Bxe4 {[%clk 0:02:51]} 16...
Bf5 {[%clk 0:02:50.2]} 17. Bxf5 {[%clk 0:02:48.4]} 17... Nxf5 {[%clk 0:02:51.5]}
18. Qd2 {[%clk 0:02:37]} 18... Ne5 {[%clk 0:02:37.7]} 19. Qc3 {[%clk 0:02:19.7]}
19... Nh4 {[%clk 0:02:16.9]} 20. Ne1 {[%clk 0:01:57.8]} 20... Nhf3+ {[%clk
0:01:58.5]} 21. Nxf3 {[%clk 0:01:55.6]} 21... Nxf3+ {[%clk 0:01:59.9]} 22. Kg2
{[%clk 0:01:55.5]} 22... Qe4 {[%clk 0:02:01.5]} 23. Qe3 {[%clk 0:01:46.9]} 23...
Ne1+ {[%clk 0:01:55.2]} 24. Kh3 {[%clk 0:01:39.8]} 24... Qxe3 {[%clk 0:01:55.3]}
25. fxe3 {[%clk 0:01:41.7]} 25... Rxf1 {[%clk 0:01:55.7]} 0-1

[Event "*** Titled Tuesday 3|2 Blitz"]
[Site "Chess.com"]
[Date "2016.05.03"]
[Round "7"]
[White "Dr-Bassem"]
[Black "Gevorg_Harutjunyan"]
[Result "0-1"]
[WhiteElo "2580"]
[BlackElo "2659"]
[TimeControl "180+2"]
[EndTime "18:23:14 PDT"]
[Termination "Gevorg_Harutjunyan won by checkmate"]

1. e4 {[%clk 0:03:01.9]} 1... c6 {[%clk 0:03:00.7]} 2. d4 {[%clk 0:03:02.3]}
2... d5 {[%clk 0:03:02.1]} 3. exd5 {[%clk 0:03:04.2]} 3... cxd5 {[%clk
0:03:03.1]} 4. c4 {[%clk 0:03:06.1]} 4... Nf6 {[%clk 0:03:04.1]} 5. Nc3 {[%clk
0:03:08]} 5... Nc6 {[%clk 0:03:05]} 6. Bg5 {[%clk 0:03:07.8]} 6... Ne4 {[%clk
0:03:03.5]} 7. Nxe4 {[%clk 0:03:07.9]} 7... dxe4 {[%clk 0:03:05.4]} 8. d5 {[%clk
0:03:09]} 8... Ne5 {[%clk 0:03:05.4]} 9. Qd4 {[%clk 0:03:08.5]} 9... f6 {[%clk
0:03:05.7]} 10. Qxe4 {[%clk 0:02:48.5]} 10... Qb6 {[%clk 0:03:06.2]} 11. O-O-O
{[%clk 0:02:40.2]} 11... Qxf2 {[%clk 0:02:54.2]} 12. Bf4 {[%clk 0:02:18.3]}
12... g6 {[%clk 0:02:32.2]} 13. Nf3 {[%clk 0:01:48.3]} 13... Bf5 {[%clk
0:02:24.2]} 14. Qe2 {[%clk 0:01:40]} 14... Qxe2 {[%clk 0:02:22.9]} 15. Bxe2
{[%clk 0:01:41.9]} 15... Nxc4 {[%clk 0:02:15]} 16. Bxc4 {[%clk 0:01:34.8]} 16...
Rc8 {[%clk 0:02:15]} 17. b3 {[%clk 0:01:15.8]} 17... b5 {[%clk 0:02:16.2]} 18.
Nd2 {[%clk 0:01:04.1]} 18... e5 {[%clk 0:02:03.1]} 19. dxe6 {[%clk 0:00:47.9]}
19... Ba3# {[%clk 0:02:02.3]} 0-1

[Event "*** Titled Tuesday 3|2 Blitz"]
[Site "Chess.com"]
[Date "2016.05.03"]
[Round "7"]
[White "Viaje"]
[Black "Zazuliak"]
[Result "0-1"]
[WhiteElo "2152"]
[BlackElo "2374"]
[TimeControl "180+2"]
[EndTime "18:24:07 PDT"]
[Termination "Zazuliak won by resignation"]

1. d4 {[%clk 0:02:04.3]} 1... Nf6 {[%clk 0:02:59.2]} 2. c4 {[%clk 0:02:05.6]}
2... g6 {[%clk 0:03:00]} 3. Nc3 {[%clk 0:02:06.8]} 3... Bg7 {[%clk 0:03:00.9]}
4. e4 {[%clk 0:02:08.2]} 4... d6 {[%clk 0:03:01.8]} 5. Be2 {[%clk 0:02:09.7]}
5... O-O {[%clk 0:03:02.7]} 6. Nf3 {[%clk 0:02:10.9]} 6... Na6 {[%clk
0:03:03.5]} 7. O-O {[%clk 0:02:12.2]} 7... e5 {[%clk 0:03:04.4]} 8. Be3 {[%clk
0:02:11.1]} 8... Ng4 {[%clk 0:03:04.7]} 9. Bg5 {[%clk 0:02:11.8]} 9... Qe8
{[%clk 0:03:05.6]} 10. Nd5 {[%clk 0:02:11.9]} 10... h6 {[%clk 0:02:51.1]} 11.
Be7 {[%clk 0:02:09]} 11... c6 {[%clk 0:02:43.2]} 12. Bxf8 {[%clk 0:02:09.1]}
12... Kxf8 {[%clk 0:02:37.5]} 13. Nc3 {[%clk 0:02:09.1]} 13... exd4 {[%clk
0:02:32.6]} 14. Nxd4 {[%clk 0:02:10]} 14... Ne5 {[%clk 0:02:31.1]} 15. f4 {[%clk
0:02:07.9]} 15... Nd7 {[%clk 0:02:28.6]} 16. f5 {[%clk 0:01:56.8]} 16... Kg8
{[%clk 0:02:22.7]} 17. fxg6 {[%clk 0:01:54.9]} 17... fxg6 {[%clk 0:02:23.2]} 18.
Kh1 {[%clk 0:01:55.7]} 18... Ne5 {[%clk 0:02:22.7]} 19. Rc1 {[%clk 0:01:51.9]}
19... Qe7 {[%clk 0:02:21.3]} 20. Nf3 {[%clk 0:01:46.8]} 20... Nc5 {[%clk
0:02:19.2]} 21. Nxe5 {[%clk 0:01:45]} 21... Bxe5 {[%clk 0:02:19.5]} 22. Bg4
{[%clk 0:01:46.6]} 22... Qh4 {[%clk 0:02:12.2]} 23. Bh3 {[%clk 0:01:24.5]} 23...
Bxh3 {[%clk 0:02:10.8]} 24. gxh3 {[%clk 0:01:26.4]} 24... Qxh3 {[%clk 0:02:05]}
25. Rc2 {[%clk 0:01:26.3]} 25... Qe6 {[%clk 0:01:54.6]} 26. Qe2 {[%clk
0:01:22.1]} 26... Re8 {[%clk 0:01:52]} 27. b3 {[%clk 0:01:13]} 27... Bxc3 {[%clk
0:01:40.8]} 28. Rxc3 {[%clk 0:01:14.9]} 28... Nxe4 {[%clk 0:01:41.3]} 0-1

[Event "*** Titled Tuesday 3|2 Blitz"]
[Site "Chess.com"]
[Date "2016.05.03"]
[Round "7"]
[White "GeorgMeier"]
[Black "Checky2015"]
[Result "1/2-1/2"]
[WhiteElo "2744"]
[BlackElo "2617"]
[TimeControl "180+2"]
[EndTime "18:24:37 PDT"]
[Termination "Game drawn by repetition"]

1. Nf3 {[%clk 0:03:01.9]} 1... d5 {[%clk 0:03:01.3]} 2. g3 {[%clk 0:03:03.8]}
2... Nf6 {[%clk 0:03:02.8]} 3. Bg2 {[%clk 0:03:05.3]} 3... e6 {[%clk 0:03:04.7]}
4. O-O {[%clk 0:03:06]} 4... Be7 {[%clk 0:03:06.6]} 5. c4 {[%clk 0:03:07.5]}
5... O-O {[%clk 0:03:08]} 6. d4 {[%clk 0:03:09.1]} 6... dxc4 {[%clk 0:03:09.5]}
7. Qc2 {[%clk 0:03:10.6]} 7... a6 {[%clk 0:03:11]} 8. a4 {[%clk 0:03:12.1]} 8...
Bd7 {[%clk 0:03:12.2]} 9. Qxc4 {[%clk 0:03:13.7]} 9... Bc6 {[%clk 0:03:13.1]}
10. Bg5 {[%clk 0:03:15.3]} 10... Bd5 {[%clk 0:03:12.5]} 11. Qc2 {[%clk
0:03:12.7]} 11... Be4 {[%clk 0:03:12.9]} 12. Qd1 {[%clk 0:03:13.6]} 12... a5
{[%clk 0:03:02.8]} 13. Nc3 {[%clk 0:03:07.1]} 13... Bxf3 {[%clk 0:03:03.9]} 14.
Bxf3 {[%clk 0:03:07.2]} 14... c6 {[%clk 0:03:05.2]} 15. Qb3 {[%clk 0:02:36.5]}
15... Na6 {[%clk 0:02:53.8]} 16. Rfd1 {[%clk 0:02:24.1]} 16... Nb4 {[%clk
0:02:54.5]} 17. Rac1 {[%clk 0:02:21]} 17... h6 {[%clk 0:02:55.2]} 18. Bf4 {[%clk
0:02:20.1]} 18... Nfd5 {[%clk 0:02:54.7]} 19. Bd2 {[%clk 0:02:21.2]} 19... Nb6
{[%clk 0:02:53.2]} 20. Be1 {[%clk 0:02:11.7]} 20... Nd7 {[%clk 0:02:43.3]} 21.
e3 {[%clk 0:02:08.6]} 21... Qb6 {[%clk 0:02:40.5]} 22. Ne4 {[%clk 0:02:07.6]}
22... Nd5 {[%clk 0:02:39.1]} 23. Qxb6 {[%clk 0:02:03.9]} 23... N7xb6 {[%clk
0:02:41]} 24. b3 {[%clk 0:02:04.9]} 24... Nd7 {[%clk 0:02:38.3]} 25. Nd2 {[%clk
0:01:49.2]} 25... Ba3 {[%clk 0:02:32.3]} 26. Ra1 {[%clk 0:01:37.7]} 26... Bb2
{[%clk 0:02:28.2]} 27. Rab1 {[%clk 0:01:38.4]} 27... Bc3 {[%clk 0:02:28]} 28.
Kf1 {[%clk 0:01:31.7]} 28... Rfd8 {[%clk 0:02:26.8]} 29. Rbc1 {[%clk 0:01:24.7]}
29... Bb2 {[%clk 0:02:27.7]} 30. Rb1 {[%clk 0:01:25.8]} 30... Bc3 {[%clk
0:02:29.2]} 31. Rbc1 {[%clk 0:01:21.8]} 31... Bb2 {[%clk 0:02:30.3]} 32. Rc2
{[%clk 0:01:22.8]} 32... Ba3 {[%clk 0:02:29]} 33. Nc4 {[%clk 0:01:24]} 33... Bb4
{[%clk 0:02:25.2]} 34. e4 {[%clk 0:01:24.5]} 34... Bxe1 {[%clk 0:02:17.7]} 35.
Kxe1 {[%clk 0:01:09.1]} 35... Nb4 {[%clk 0:02:16.9]} 36. Rcd2 {[%clk 0:01:10.2]}
36... Kf8 {[%clk 0:02:12.7]} 37. Bg2 {[%clk 0:01:11.6]} 37... Ke7 {[%clk
0:02:12.4]} 38. f4 {[%clk 0:01:13.2]} 38... g5 {[%clk 0:02:08.1]} 39. Kf2 {[%clk
0:01:13.9]} 39... gxf4 {[%clk 0:02:08.7]} 40. gxf4 {[%clk 0:01:15.8]} 40... Nf6
{[%clk 0:02:10]} 41. Bf3 {[%clk 0:01:15.6]} 41... Rg8 {[%clk 0:02:09.1]} 42. Nb6
{[%clk 0:01:11.1]} 42... Rad8 {[%clk 0:02:09.1]} 43. Nc4 {[%clk 0:01:12.2]}
43... Ra8 {[%clk 0:02:09.4]} 44. Ne5 {[%clk 0:01:12.9]} 44... Nd7 {[%clk
0:02:08.5]} 45. Nc4 {[%clk 0:01:09.6]} 45... Nf6 {[%clk 0:02:08.5]} 1/2-1/2

[Event "*** Titled Tuesday 3|2 Blitz"]
[Site "Chess.com"]
[Date "2016.05.03"]
[Round "7"]
[White "Hikaru"]
[Black "MinhGTrAn"]
[Result "0-1"]
[WhiteElo "2822"]
[BlackElo "2644"]
[TimeControl "180+2"]
[EndTime "18:25:10 PDT"]
[Termination "MinhGTrAn won by resignation"]

1. c4 {[%clk 0:03:01.9]} 1... e5 {[%clk 0:03:00.2]} 2. Nc3 {[%clk 0:03:01.9]}
2... Bb4 {[%clk 0:03:00.7]} 3. g3 {[%clk 0:03:00.1]} 3... c6 {[%clk 0:03:01.4]}
4. Bg2 {[%clk 0:02:59.8]} 4... Nf6 {[%clk 0:03:02.5]} 5. Nf3 {[%clk 0:02:59.4]}
5... d6 {[%clk 0:02:59.6]} 6. O-O {[%clk 0:02:58.9]} 6... O-O {[%clk 0:03:00.7]}
7. d4 {[%clk 0:03:00.5]} 7... Nbd7 {[%clk 0:02:53]} 8. Qc2 {[%clk 0:02:59.4]}
8... Qe7 {[%clk 0:02:39.5]} 9. a3 {[%clk 0:02:54.7]} 9... Bxc3 {[%clk
0:02:32.1]} 10. Qxc3 {[%clk 0:02:56.6]} 10... h6 {[%clk 0:02:30]} 11. e3 {[%clk
0:02:55.4]} 11... e4 {[%clk 0:02:27.4]} 12. Nd2 {[%clk 0:02:55.2]} 12... d5
{[%clk 0:02:27.9]} 13. b3 {[%clk 0:02:56.7]} 13... Re8 {[%clk 0:02:23.5]} 14. a4
{[%clk 0:02:58]} 14... Qe6 {[%clk 0:02:20.3]} 15. Ba3 {[%clk 0:02:54.7]} 15...
Nf8 {[%clk 0:02:14.9]} 16. Rae1 {[%clk 0:02:55.5]} 16... N8h7 {[%clk 0:02:10.4]}
17. f4 {[%clk 0:02:48.4]} 17... exf3 {[%clk 0:02:05.2]} 18. Nxf3 {[%clk
0:02:49.6]} 18... Ne4 {[%clk 0:02:01.9]} 19. Qc2 {[%clk 0:02:50.8]} 19... Nhg5
{[%clk 0:02:01.9]} 20. Ne5 {[%clk 0:02:44.5]} 20... f6 {[%clk 0:02:00.6]} 21.
Nd3 {[%clk 0:02:45.2]} 21... Qf7 {[%clk 0:01:51.6]} 22. Nf4 {[%clk 0:02:44.2]}
22... Bd7 {[%clk 0:01:34.4]} 23. Rc1 {[%clk 0:02:24.7]} 23... dxc4 {[%clk
0:01:22.5]} 24. bxc4 {[%clk 0:02:25.4]} 24... Bf5 {[%clk 0:01:23.6]} 25. Qe2
{[%clk 0:02:23.1]} 25... Rad8 {[%clk 0:01:18.9]} 26. d5 {[%clk 0:02:19.2]} 26...
Qd7 {[%clk 0:01:16.1]} 27. Kh1 {[%clk 0:02:07.7]} 27... c5 {[%clk 0:01:10.9]}
28. Bb2 {[%clk 0:01:58.6]} 28... Re7 {[%clk 0:01:06.8]} 29. a5 {[%clk
0:01:47.4]} 29... Rde8 {[%clk 0:01:07.6]} 30. Rce1 {[%clk 0:01:49]} 30... Nd6
{[%clk 0:01:03.3]} 31. Bc1 {[%clk 0:01:43]} 31... Be4 {[%clk 0:01:01]} 32. h4
{[%clk 0:01:30.2]} 32... Bxg2+ {[%clk 0:01:01.6]} 33. Kxg2 {[%clk 0:01:32.1]}
33... Nge4 {[%clk 0:00:59.2]} 34. Ne6 {[%clk 0:01:32.9]} 34... Rxe6 {[%clk
0:00:58.2]} 35. dxe6 {[%clk 0:01:34.8]} 35... Qxe6 {[%clk 0:01:00.1]} 36. Rf4
{[%clk 0:01:36.4]} 36... Nxc4 {[%clk 0:00:58.4]} 37. Qa2 {[%clk 0:01:22.1]}
37... Nxe3+ {[%clk 0:00:56.2]} 0-1